fUSD/lending_fUSD_20260427
["ID","MTS","AMOUNT","RATE_DAILY","PERIOD"]
[421195497,1777230669488,-704.82,0.00038904,15]
[421195498,1777230669498,-18480.37,0.00038904,15]
[421195499,1777230669507,-838.62,0.00038904,15]
[421195500,1777230669516,-643.71,0.00038904,15]
[421195501,1777230669526,-4214.41,0.00038904,15]
[421195502,1777230669535,-1043.57,0.00038904,15]
[421195503,1777230669545,-500.0,0.00038904,15]
[421195504,1777230669554,-1128.82,0.00038904,15]
[421195505,1777230669564,-500.0,0.00038904,15]
[421195506,1777230669573,-243.51370767,0.00038904,15]
[421195507,1777230669582,-500.0,0.00038904,15]
[421195508,1777230669592,-826.33,0.00038904,15]
[421195509,1777230669603,-500.0,0.00038904,15]
[421195510,1777230669612,-1350.11,0.00038904,15]
[421195511,1777230669622,-1122.83,0.00038904,15]
[421195512,1777230669632,-500.0,0.00038904,15]
[421195513,1777230669642,-591.29430352,0.00038904,15]
[421195514,1777230669653,-2819.67,0.00038904,15]
[421195515,1777230669663,-500.0,0.00038904,15]
[421195516,1777230669673,-500.0,0.00038904,15]
[421195517,1777230669682,-936.61,0.00038904,15]
[421195518,1777230669692,-500.0,0.00038904,15]
[421195519,1777230669701,-2084.4,0.00038904,15]
[421195520,1777230669710,-500.0,0.00038904,15]
[421195521,1777230669720,-500.0,0.00038904,15]
[421195522,1777230669728,-500.0,0.00038904,15]
[421195523,1777230669738,-500.0,0.00038904,15]
[421195524,1777230669747,-500.0,0.00038904,15]
[421195525,1777230669756,-500.0,0.00038904,15]
[421195526,1777230669765,-1259.32,0.00038904,15]
[421195527,1777230669775,-620.77,0.00038904,15]
[421195528,1777230669784,-509.21,0.00038904,15]
[421195529,1777230669793,-2495.88,0.00038904,15]
[421195530,1777230669803,-500.0,0.00038904,15]
[421195531,1777230669812,-800.28,0.00038904,15]
[421195532,1777230669822,-500.0,0.00038904,15]
[421195533,1777230669832,-500.0,0.00038904,15]
[421195534,1777230669842,-500.0,0.00038904,15]
[421195535,1777230669851,-500.0,0.00038904,15]
[421195536,1777230669860,-4180.34,0.00038904,15]
[421195537,1777230669871,-1435.38,0.00038904,15]
[421195538,1777230669880,-500.0,0.00038904,15]
[421195539,1777230669890,-500.0,0.00038904,15]
[421195540,1777230669900,-500.0,0.00038904,15]
[421195541,1777230669909,-500.0,0.00038904,15]
[421195542,1777230669919,-3856.9,0.00038904,15]
[421195543,1777230669929,-500.0,0.00038904,15]
[421195544,1777230669938,-500.0,0.00038904,15]
[421195545,1777230669949,-500.0,0.00038904,15]
[421195546,1777230669958,-500.0,0.00038904,15]
[421195547,1777230669967,-1138.59,0.00038904,15]
[421195548,1777230669977,-1146.85,0.00038904,15]
[421195549,1777230669986,-500.0,0.00038904,15]
[421195550,1777230669995,-500.0,0.00038904,15]
[421195551,1777230670004,-500.0,0.00038904,15]
[421195552,1777230670014,-500.0,0.00038904,15]
[421195553,1777230670023,-525.40033414,0.00038904,15]
[421195554,1777230670032,-500.0,0.00038904,15]
[421195555,1777230670042,-3436.63,0.00038904,15]
[421195556,1777230670051,-500.0,0.00038904,15]
[421195557,1777230670061,-500.0,0.00038904,15]
[421195558,1777230670071,-500.0,0.00038904,120]
[421195559,1777230670080,-151.0,0.00038904,30]
[421195560,1777230670089,-2560.0,0.00038904,120]
[421195561,1777230670099,-317.42446403,0.00038904,5]
[421195562,1777230670109,-208.0,0.0003891,30]
[421195563,1777230670118,-767.12175351,0.00038931,120]
[421195564,1777230670128,-177.79664657,0.00038931,120]
[421195565,1777230670137,-202.55216919,0.00038931,120]
[421195566,1777230670147,-198.30715256,0.00038931,120]
[421195567,1777230670156,-208.31133897,0.00038931,120]
[421195568,1777230670166,-227.87252914,0.00038931,120]
[421195569,1777230670176,-516.29665649,0.00038959,30]
[421195570,1777230670185,-556.95,0.00038961,7]
[421195571,1777230670195,-2000.0,0.00038985,120]
[421195572,1777230670204,-2059.43592362,0.00038988,120]
[421195573,1777230670214,-500.0,0.00038999,15]
[421195574,1777230670223,-50000.0,0.00039,26]
[421195575,1777230670233,-1500.58453827,0.00039,20]
[421195576,1777230670242,-2503.79670098,0.00039,12]
[421195577,1777230670252,-5216.13,0.00039,6]
[421195578,1777230670262,-152.30707714,0.00039,5]
[421195579,1777230670271,-529.00326903,0.00039,120]
[421195580,1777230670280,-2427.78336309,0.00039,120]
[421195581,1777230670290,-1000.0,0.00039,120]
[421195582,1777230670300,-1000.0,0.00039,120]
[421195583,1777230670313,-1000.0,0.00039,120]
[421195584,1777230670322,-412.34,0.00039,120]
[421195585,1777230670332,-2078.02,0.00039,120]
[421195586,1777230670341,-648.48,0.00039,7]
[421195587,1777230670351,-1500.0,0.00039,120]
[421195588,1777230670360,-2000.0,0.00039,120]
[421195589,1777230670370,-3680.8,0.00039,7]
[421195590,1777230670379,-151.0,0.00039,30]
[421195591,1777230670389,-250.0,0.00039013,90]
[421195592,1777230670398,-397.97,0.0003902,112]
[421195593,1777230670407,-1709.84005001,0.00039041,30]
[421195594,1777230670420,-1596.5606894,0.00039041,30]
[421195595,1777230670429,-3388.0,0.00039041,30]
[421195596,1777230670438,-3232.69162855,0.00039041,30]
[421195597,1777230670448,-504.0,0.00039083,12]
[421195598,1777230670457,-189.61830247,0.00039089,7]
[421195599,1777230670466,-14611.77393764,0.00039098,2]
[421195600,1777230670475,-1103.7,0.00039119,30]
[421195601,1777230670484,-516.29665649,0.00039123,30]
[421195602,1777230670493,-25000.0,0.00039145,15]
[421195603,1777230670502,-25000.0,0.00039154,15]
[421195604,1777230670512,-150.0,0.00039163,2]
[421195605,1777230670522,-25000.0,0.00039163,15]
[421195606,1777230670531,-25000.0,0.00039163,15]
[421195607,1777230670539,-25000.0,0.00039163,15]
[421195608,1777230670548,-25000.0,0.00039172,15]
[421195609,1777230670558,-25000.0,0.00039172,15]
[421195610,1777230670567,-25000.0,0.00039172,15]
[421195611,1777230670576,-500.0,0.00039176,15]
[421195612,1777230670585,-4577.51616938,0.00039177,15]
[421195613,1777230670594,-4577.51616938,0.00039177,15]
[421195614,1777230670603,-4577.51616938,0.00039177,15]
[421195615,1777230670612,-4577.51616938,0.00039177,15]
[421195616,1777230670621,-4577.51616937,0.00039177,15]
[421195617,1777230670630,-4577.51616937,0.00039177,15]
[421195618,1777230670639,-500.0,0.00039177,15]
[421195619,1777230670649,-500.0,0.00039178,15]
[421195620,1777230670660,-500.0,0.00039178,15]
[421195621,1777230670670,-500.0,0.00039178,15]
[421195622,1777230670680,-500.0,0.00039178,15]
[421195623,1777230670691,-3107.9,0.00039178,15]
[421195624,1777230670702,-500.0,0.00039178,15]
[421195625,1777230670713,-541.43,0.00039178,15]
[421195626,1777230670723,-500.0,0.00039178,15]
[421195627,1777230670733,-709.65,0.00039178,15]
[421195628,1777230670743,-500.0,0.00039178,15]
[421195629,1777230670754,-811.08,0.00039178,15]
[421195630,1777230670763,-846.38,0.00039178,15]
[421195631,1777230670773,-500.0,0.00039178,15]
[421195632,1777230670782,-568.42,0.00039178,15]
[421195633,1777230670796,-273.77320213,0.00039178,15]
[421195634,1777230670807,-2471.02,0.00039178,15]
[421195635,1777230670817,-500.0,0.00039178,7]
[421195636,1777230670827,-500.0,0.00039178,15]
[421195637,1777230670836,-500.0,0.00039178,15]
[421195638,1777230670846,-2520.49,0.00039178,15]
[421195639,1777230670855,-508.44,0.00039178,15]
[421195640,1777230670864,-565.14,0.00039178,15]
[421195641,1777230670874,-503.41,0.00039178,15]
[421195642,1777230670883,-500.0,0.00039178,15]
[421195643,1777230670893,-831.76,0.00039178,15]
[421195644,1777230670902,-500.0,0.00039178,15]
[421195645,1777230670912,-541.23,0.00039178,15]
[421195646,1777230670922,-500.0,0.00039178,15]
[421195647,1777230670933,-682.03,0.00039178,15]
[421195648,1777230670943,-500.0,0.00039178,15]
[421195649,1777230670953,-500.0,0.00039178,15]
[421195650,1777230670964,-500.0,0.00039178,15]
[421195651,1777230670974,-500.0,0.00039178,15]
[421195652,1777230670986,-500.0,0.00039178,15]
[421195653,1777230670995,-1671.16,0.00039178,15]
[421195654,1777230671004,-1531.96,0.00039178,15]
[421195655,1777230671014,-2225.71,0.00039178,15]
[421195656,1777230671022,-934.68,0.00039178,15]
[421195657,1777230671032,-500.0,0.00039178,15]
[421195658,1777230671041,-500.0,0.00039178,15]
[421195659,1777230671051,-500.0,0.00039178,15]
[421195660,1777230671060,-500.0,0.00039178,12]
[421195661,1777230671069,-1522.47,0.00039178,15]
[421195662,1777230671079,-500.0,0.00039178,15]
[421195663,1777230671088,-2473.24,0.00039178,15]
[421195664,1777230671098,-894.3,0.00039178,15]
[421195665,1777230671108,-1358.93,0.00039178,15]
[421195666,1777230671117,-872.26,0.00039178,15]
[421195667,1777230671127,-500.0,0.00039178,15]
[421195668,1777230671137,-1642.91,0.00039178,15]
[421195669,1777230671147,-500.0,0.00039178,15]
[421195670,1777230671157,-1027.29,0.00039178,15]
[421195671,1777230671167,-500.0,0.00039178,15]
[421195672,1777230671176,-500.0,0.00039178,15]
[421195673,1777230671186,-1006.0,0.00039178,15]
[421195674,1777230671199,-500.0,0.00039178,15]
[421195675,1777230671208,-500.0,0.00039178,15]
[421195676,1777230671217,-801.31,0.00039178,15]
[421195677,1777230671227,-500.0,0.00039178,15]
[421195678,1777230671237,-500.0,0.00039178,15]
[421195679,1777230671246,-500.0,0.00039178,15]
[421195680,1777230671256,-1100.16,0.00039178,15]
[421195681,1777230671266,-335.13674738,0.00039178,15]
[421195682,1777230671276,-500.0,0.00039178,15]
[421195683,1777230671286,-577.1,0.00039178,15]
[421195684,1777230671296,-1288.23,0.00039178,15]
[421195685,1777230671305,-500.0,0.00039178,15]
[421195686,1777230671315,-500.0,0.00039178,15]
[421195687,1777230671325,-552.71,0.00039178,15]
[421195688,1777230671334,-500.0,0.00039178,15]
[421195689,1777230671344,-500.0,0.00039178,15]
[421195690,1777230671354,-500.0,0.00039178,15]
[421195691,1777230671363,-500.0,0.00039178,15]
[421195692,1777230671372,-500.0,0.00039178,15]
[421195693,1777230671382,-500.0,0.00039178,15]
[421195694,1777230671391,-1677.38,0.00039178,15]
[421195695,1777230671401,-500.0,0.00039178,15]
[421195696,1777230671410,-1627.8,0.00039178,15]
[421195697,1777230671424,-263.26930963,0.00039178,15]
[421195698,1777230671434,-781.79,0.00039178,15]
[421195699,1777230671444,-641.44428504,0.00039178,15]
[421195700,1777230671454,-1068.12,0.00039178,15]
[421195701,1777230671463,-500.0,0.00039178,15]
[421195702,1777230671472,-1323.09,0.00039178,15]
[421195703,1777230671482,-1437.06,0.00039178,15]
[421195704,1777230671492,-500.0,0.00039178,15]
[421195705,1777230671501,-840.22,0.00039178,15]
[421195706,1777230671510,-500.0,0.00039178,15]
[421195707,1777230671520,-1473.32,0.00039178,15]
[421195708,1777230671529,-500.0,0.00039178,15]
[421195709,1777230671538,-583.15,0.00039178,15]
[421195710,1777230671547,-1035.72,0.00039178,15]
[421195711,1777230671557,-2116.59,0.00039178,15]
[421195712,1777230671566,-500.0,0.00039178,15]
[421195713,1777230671576,-500.0,0.00039178,15]
[421195714,1777230671585,-500.0,0.00039178,15]
[421195715,1777230671595,-500.0,0.00039178,15]
[421195716,1777230671606,-500.0,0.00039178,15]
[421195717,1777230671615,-600.87,0.00039178,15]
[421195718,1777230671626,-500.0,0.00039178,15]
[421195719,1777230671635,-500.0,0.00039178,15]
[421195720,1777230671646,-500.0,0.00039178,15]
[421195721,1777230671660,-500.0,0.00039178,15]
[421195722,1777230671670,-500.0,0.00039178,15]
[421195723,1777230671679,-621.43,0.00039178,15]
[421195724,1777230671689,-1870.33,0.00039178,15]
[421195725,1777230671698,-500.0,0.00039178,15]
[421195726,1777230671708,-2364.44,0.00039178,15]
[421195727,1777230671717,-1216.3,0.00039178,15]
[421195728,1777230671727,-842.05,0.00039178,15]
[421195729,1777230671736,-519.44,0.00039178,15]
[421195730,1777230671749,-500.0,0.00039178,15]
[421195731,1777230671759,-500.0,0.00039178,15]
[421195732,1777230671768,-540.3,0.00039178,15]
[421195733,1777230671778,-473.36951713,0.00039178,15]
[421195734,1777230671789,-500.0,0.00039178,15]
[421195735,1777230671799,-2232.09,0.00039178,15]
[421195736,1777230671811,-500.0,0.00039178,15]
[421195737,1777230671820,-1908.11,0.00039178,15]
[421195738,1777230671830,-500.0,0.00039178,15]
[421195739,1777230671842,-527.87,0.00039178,15]
[421195740,1777230671854,-500.0,0.00039178,15]
[421195741,1777230671864,-500.0,0.00039178,15]
[421195742,1777230671874,-500.0,0.00039178,15]
[421195743,1777230671883,-500.0,0.00039178,15]
[421195744,1777230671892,-2846.84,0.00039178,15]
[421195745,1777230671902,-500.0,0.00039178,15]
[421195746,1777230671911,-670.37,0.00039178,15]
[421195747,1777230671920,-753.07,0.00039178,15]
[421195748,1777230671930,-1838.66,0.00039178,15]
[421195749,1777230671939,-500.0,0.00039178,15]
[421195750,1777230671948,-572.69888389,0.00039178,15]
[421195751,1777230671958,-629.13,0.00039178,15]
[421195752,1777230671968,-500.0,0.00039178,15]
[421195753,1777230671979,-1876.72,0.00039178,15]
[421195754,1777230671988,-1079.95,0.00039178,15]
[421195755,1777230671998,-500.0,0.00039178,15]
[421195756,1777230672008,-738.6,0.00039178,15]
[421195757,1777230672018,-833.92,0.00039178,15]
[421195758,1777230672030,-500.0,0.00039178,15]
[421195759,1777230672042,-500.0,0.00039178,15]
[421195760,1777230672052,-1225.64,0.00039178,15]
[421195761,1777230672061,-550.1,0.00039178,15]
[421195762,1777230672071,-500.0,0.00039178,15]
[421195763,1777230672080,-500.0,0.00039178,15]
[421195764,1777230672090,-1061.98,0.00039178,15]
[421195765,1777230672100,-500.0,0.00039178,15]
[421195766,1777230672110,-500.0,0.00039178,15]
[421195767,1777230672130,-329.50621085,0.00039178,15]
[421195768,1777230672140,-500.0,0.00039178,15]
[421195769,1777230672150,-1723.48,0.00039178,15]
[421195770,1777230672159,-500.0,0.00039178,15]
[421195771,1777230672169,-689.09,0.00039178,15]
[421195772,1777230672178,-500.0,0.00039178,15]
[421195773,1777230672187,-500.0,0.00039178,15]
[421195774,1777230672197,-500.0,0.00039178,15]
[421195775,1777230672207,-648.18,0.00039178,15]
[421195776,1777230672217,-1128.22,0.00039178,15]
[421195777,1777230672227,-972.03,0.00039178,15]
[421195778,1777230672237,-500.0,0.00039178,15]
[421195779,1777230672247,-1122.6,0.00039178,15]
[421195780,1777230672257,-500.0,0.00039178,15]
[421195781,1777230672267,-388.6586434,0.00039178,15]
[421195782,1777230672278,-500.0,0.00039178,15]
[421195783,1777230672288,-500.0,0.00039178,15]
[421195784,1777230672299,-500.0,0.00039178,15]
[421195785,1777230672310,-1543.14,0.00039178,15]
[421195786,1777230672321,-500.0,0.00039178,15]
[421195787,1777230672331,-500.0,0.00039178,15]
[421195788,1777230672342,-592.34720352,0.00039178,15]
[421195789,1777230672355,-1673.98,0.00039178,15]
[421195790,1777230672365,-500.0,0.00039178,15]
[421195791,1777230672376,-500.0,0.00039178,15]
[421195792,1777230672385,-500.0,0.00039178,15]
[421195793,1777230672395,-1019.21,0.00039178,15]
[421195794,1777230672405,-500.0,0.00039178,15]
[421195795,1777230672415,-693.7,0.00039178,15]
[421195796,1777230672424,-500.0,0.00039178,15]
[421195797,1777230672434,-616.37,0.00039178,15]
[421195798,1777230672444,-500.0,0.00039178,15]
[421195799,1777230672454,-500.0,0.00039178,15]
[421195800,1777230672466,-500.0,0.00039178,15]
[421195801,1777230672476,-500.0,0.00039178,15]
[421195802,1777230672486,-500.0,0.00039178,15]
[421195803,1777230672495,-1077.19,0.00039178,15]
[421195804,1777230672506,-500.0,0.00039178,15]
[421195805,1777230672516,-1201.83,0.00039178,15]
[421195806,1777230672526,-500.0,0.00039178,15]
[421195807,1777230672535,-500.0,0.00039178,15]
[421195808,1777230672545,-500.0,0.00039178,15]
[421195809,1777230672554,-882.98,0.00039178,5]
[421195810,1777230672564,-500.0,0.00039178,15]
[421195811,1777230672573,-571.13,0.00039178,15]
[421195812,1777230672583,-532.65,0.00039178,15]
[421195813,1777230672593,-532.67,0.00039178,15]
[421195814,1777230672603,-514.81038863,0.00039178,15]
[421195815,1777230672620,-552.39,0.00039178,15]
[421195816,1777230672635,-1834.85,0.00039178,15]
[421195817,1777230672650,-892.83,0.00039178,15]
[421195818,1777230672663,-1534.49,0.00039178,15]
[421195819,1777230672674,-972.12,0.00039178,15]
[421195820,1777230672687,-500.0,0.00039178,15]
[421195821,1777230672701,-551.58,0.00039178,15]
[421195822,1777230672715,-1750.29,0.00039178,15]
[421195823,1777230672733,-937.9,0.00039178,7]
[421195824,1777230672746,-500.0,0.00039178,15]
[421195825,1777230672761,-500.0,0.00039178,15]
[421195826,1777230672775,-993.58,0.00039178,15]
[421195827,1777230672792,-500.0,0.00039178,15]
[421195828,1777230672809,-530.46,0.00039178,15]
[421195829,1777230672823,-520.62,0.00039178,15]
[421195830,1777230672836,-1995.81,0.00039178,15]
[421195831,1777230672850,-525.77,0.00039178,15]
[421195832,1777230672862,-500.0,0.00039178,15]
[421195833,1777230672876,-500.0,0.00039178,15]
[421195834,1777230672889,-1952.43,0.00039178,15]
[421195835,1777230672901,-518.57,0.00039178,15]
[421195836,1777230672912,-500.0,0.00039178,15]
[421195837,1777230672923,-580.81,0.00039178,15]
[421195838,1777230672937,-500.0,0.00039178,15]
[421195839,1777230672949,-500.0,0.00039178,15]
[421195840,1777230672962,-992.01,0.00039178,15]
[421195841,1777230672975,-2029.26,0.00039178,15]
[421195842,1777230672988,-500.0,0.00039178,15]
[421195843,1777230673001,-936.75,0.00039178,15]
[421195844,1777230673014,-708.16,0.00039178,15]
[421195845,1777230673028,-1285.52,0.00039178,15]
[421195846,1777230673043,-1694.22,0.00039178,15]
[421195847,1777230673057,-500.0,0.00039178,15]
[421195848,1777230673069,-505.88,0.00039178,15]
[421195849,1777230673080,-1154.35,0.00039178,15]
[421195850,1777230673091,-595.92,0.00039178,15]
[421195851,1777230673103,-500.0,0.00039178,15]
[421195852,1777230673117,-500.0,0.00039178,15]
[421195853,1777230673130,-500.0,0.00039178,15]
[421195854,1777230673141,-1069.75,0.00039178,15]
[421195855,1777230673153,-754.46,0.00039178,15]
[421195856,1777230673166,-667.16,0.00039178,15]
[421195857,1777230673180,-945.6,0.00039178,15]
[421195858,1777230673192,-500.0,0.00039178,15]
[421195859,1777230673205,-696.96,0.00039178,15]
[421195860,1777230673224,-676.72,0.00039178,15]
[421195861,1777230673236,-821.49,0.00039178,15]
[421195862,1777230673247,-951.98,0.00039178,15]
[421195863,1777230673258,-991.13,0.00039178,15]
[421195864,1777230673275,-562.6,0.00039178,15]
[421195865,1777230673287,-500.0,0.00039178,15]
[421195866,1777230673299,-534.38,0.00039178,15]
[421195867,1777230673315,-880.94,0.00039178,15]
[421195868,1777230673328,-500.0,0.00039178,15]
[421195869,1777230673341,-590.20430829,0.00039178,15]
[421195870,1777230673355,-559.83,0.00039178,15]
[421195871,1777230673370,-236.71286378,0.00039178,15]
[421195872,1777230673385,-500.0,0.00039178,15]
[421195873,1777230673401,-500.0,0.00039178,15]
[421195874,1777230673416,-1922.83,0.00039178,15]
[421195875,1777230673431,-1246.97,0.00039178,15]
[421195876,1777230673446,-500.0,0.00039178,15]
[421195877,1777230673461,-500.0,0.00039178,15]
[421195878,1777230673477,-1103.63,0.00039178,15]
[421195879,1777230673494,-500.0,0.00039178,15]
[421195880,1777230673511,-1473.44,0.00039178,15]
[421195881,1777230673527,-500.0,0.00039178,15]
[421195882,1777230673542,-1007.38,0.00039178,15]
[421195883,1777230673557,-500.0,0.00039178,15]
[421195884,1777230673571,-1056.97,0.00039178,15]
[421195885,1777230673587,-1365.11,0.00039178,15]
[421195886,1777230673601,-500.0,0.00039178,15]
[421195887,1777230673616,-500.0,0.00039178,15]
[421195888,1777230673630,-596.91540569,0.00039178,15]
[421195889,1777230673644,-500.0,0.00039178,15]
[421195890,1777230673657,-500.0,0.00039178,15]
[421195891,1777230673670,-500.0,0.00039178,15]
[421195892,1777230673683,-1442.35,0.00039178,15]
[421195893,1777230673698,-500.0,0.00039178,15]
[421195894,1777230673711,-630.59,0.00039178,15]
[421195895,1777230673731,-1048.26,0.00039178,15]
[421195896,1777230673743,-500.0,0.00039178,15]
[421195897,1777230673759,-500.0,0.00039178,15]
[421195898,1777230673773,-500.0,0.00039178,15]
[421195899,1777230673787,-626.08,0.00039178,15]
[421195900,1777230673801,-1716.3,0.00039178,15]
[421195901,1777230673816,-500.0,0.00039178,15]
[421195902,1777230673830,-500.0,0.00039178,15]
[421195903,1777230673843,-3539.51,0.00039178,15]
[421195904,1777230673857,-500.0,0.00039178,2]
[421195905,1777230673870,-500.0,0.00039178,15]
[421195906,1777230673884,-787.69,0.00039178,15]
[421195907,1777230673897,-1238.2,0.00039178,15]
[421195908,1777230673911,-500.0,0.00039178,15]
[421195909,1777230673924,-1086.18,0.00039178,15]
[421195910,1777230673939,-500.0,0.00039178,15]
[421195911,1777230673953,-699.93,0.00039178,15]
[421195912,1777230673966,-500.0,0.00039178,15]
[421195913,1777230673979,-500.0,0.00039178,15]
[421195914,1777230673992,-214.24372249,0.00039178,15]
[421195915,1777230674005,-559.73,0.00039178,15]
[421195916,1777230674018,-867.24,0.00039178,15]
[421195917,1777230674030,-870.64,0.00039178,15]
[421195918,1777230674043,-685.35,0.00039178,15]
[421195919,1777230674056,-500.0,0.00039178,15]
[421195920,1777230674069,-1036.89,0.00039178,15]
[421195921,1777230674081,-2070.79,0.00039178,15]
[421195922,1777230674094,-500.0,0.00039178,15]
[421195923,1777230674106,-500.0,0.00039178,15]
[421195924,1777230674119,-500.0,0.00039178,15]
[421195925,1777230674131,-500.0,0.00039178,15]
[421195926,1777230674144,-3334.91,0.00039178,15]
[421195927,1777230674159,-500.0,0.00039178,15]
[421195928,1777230674172,-5476.34,0.00039178,15]
[421195929,1777230674184,-500.0,0.00039178,15]
[421195930,1777230674197,-1322.23,0.00039178,15]
[421195931,1777230674209,-1216.19,0.00039178,14]
[421195932,1777230674222,-500.0,0.00039178,15]
[421195933,1777230674233,-500.0,0.00039178,15]
[421195934,1777230674246,-158.42638106,0.00039178,15]
[421195935,1777230674258,-500.0,0.00039178,15]
[421195936,1777230674270,-1389.25,0.00039178,15]
[421195937,1777230674282,-1720.57,0.00039178,15]
[421195938,1777230674293,-440.41576549,0.00039178,15]
[421195939,1777230674305,-500.0,0.00039178,15]
[421195940,1777230674318,-312.55943214,0.00039178,15]
[421195941,1777230674330,-749.96,0.00039178,15]
[421195942,1777230674342,-500.0,0.00039178,15]
[421195943,1777230674354,-1262.11,0.00039178,15]
[421195944,1777230674365,-948.11,0.00039178,15]
[421195945,1777230674378,-2892.54,0.00039178,15]
[421195946,1777230674389,-500.0,0.00039178,15]
[421195947,1777230674401,-538.16,0.00039178,15]
[421195948,1777230674413,-500.0,0.00039178,15]
[421195949,1777230674426,-364.73095582,0.00039178,15]
[421195950,1777230674438,-743.03,0.00039178,15]
[421195951,1777230674450,-500.0,0.00039178,15]
[421195952,1777230674463,-500.0,0.00039178,15]
[421195953,1777230674474,-500.0,0.00039178,15]
[421195954,1777230674486,-1861.14,0.00039178,15]
[421195955,1777230674498,-500.0,0.00039178,15]
[421195956,1777230674509,-500.0,0.00039178,15]
[421195957,1777230674522,-500.0,0.00039178,15]
[421195958,1777230674533,-500.0,0.00039178,15]
[421195959,1777230674544,-853.77,0.00039178,15]
[421195960,1777230674556,-1169.93,0.00039178,15]
[421195961,1777230674567,-944.13,0.00039178,15]
[421195962,1777230674590,-330.10959075,0.00039178,15]
[421195963,1777230674633,-230.4069487,0.00039178,15]
[421195964,1777230674645,-1245.88,0.00039178,15]
[421195965,1777230674657,-500.0,0.00039178,15]
[421195966,1777230674669,-500.0,0.00039178,15]
[421195967,1777230674681,-500.0,0.00039178,15]
[421195968,1777230674693,-500.0,0.00039178,15]
[421195969,1777230674705,-1133.82,0.00039178,15]
[421195970,1777230674717,-500.0,0.00039178,15]
[421195971,1777230674730,-4842.51,0.00039178,15]
[421195972,1777230674742,-359.25005626,0.00039178,15]
[421195973,1777230674755,-500.0,0.00039178,15]
[421195974,1777230674767,-500.0,0.00039178,15]
[421195975,1777230674781,-500.0,0.00039178,15]
[421195976,1777230674793,-500.0,0.00039178,15]
[421195977,1777230674806,-645.99043427,0.00039178,15]
[421195978,1777230674819,-722.28,0.00039178,15]
[421195979,1777230674831,-1049.32,0.00039178,15]
[421195980,1777230674844,-1471.49,0.00039178,15]
[421195981,1777230674856,-790.34,0.00039178,15]
[421195982,1777230674869,-1919.59,0.00039178,15]
[421195983,1777230674880,-500.0,0.00039178,15]
[421195984,1777230674892,-1831.1,0.00039178,15]
[421195985,1777230674905,-500.0,0.00039178,15]
[421195986,1777230674918,-500.0,0.00039178,15]
[421195987,1777230674931,-500.0,0.00039178,15]
[421195988,1777230674943,-831.8,0.00039178,15]
[421195989,1777230674956,-500.0,0.00039178,15]
[421195990,1777230674970,-577.56,0.00039178,15]
[421195991,1777230674983,-492.34811838,0.00039178,15]
[421195992,1777230674996,-500.0,0.00039178,15]
[421195993,1777230675008,-500.0,0.00039178,15]
[421195994,1777230675020,-1054.82,0.00039178,15]
[421195995,1777230675032,-1794.7,0.00039178,15]
[421195996,1777230675044,-500.0,0.00039178,15]